bitfinex-derivatives/quotes_ETHF0:USTF0_20250903
["timestamp","ask_amount","ask_price","bid_price","bid_amount"]
[1756904478840,0.3089,4354.6,4354.5,0.1987]
[1756904479147,0.7211,4354.6,4354.5,0.6931]
[1756904481651,0.7211,4354.6,4354.5,0.4002]
[1756904481956,0.7211,4354.6,4354.5,0.1987]
[1756904483743,0.7211,4354.6,4354.1,40.8]
[1756904483744,0.4122,4354.6,4354.1,40.8]
[1756904484048,0.4122,4354.6,4353.6,0.2929]
[1756904484049,0.7211,4354.2,4353.6,0.2929]
[1756904484444,0.3089,4354.1,4353.6,0.2929]
[1756904484643,0.5147,4353.7,4353.6,0.6931]
[1756904484845,0.7211,4353.7,4353.6,0.6931]
[1756904485249,0.2058,4353.7,4353.6,0.6931]
[1756904487643,0.5147,4353.7,4353.6,0.6931]
[1756904488352,0.2058,4353.7,4353.6,0.6931]
[1756904490651,0.5147,4353.7,4353.6,0.6931]
[1756904495255,0.7211,4353.7,4353.6,0.6931]
[1756904495552,0.2058,4353.3,4353.2,0.6931]
[1756904495949,0.5147,4353.3,4353.2,0.6931]
[1756904496753,0.7211,4353.3,4353.2,0.6931]
[1756904498251,0.5147,4353.3,4353.2,0.6931]
[1756904499047,0.7211,4353.3,4353.2,0.6931]
[1756904499254,0.3089,4353.2,4353.1,40.8]
[1756904499559,0.1187,4353.5,4352.9,0.6931]
[1756904499760,1.27041119,4353.4,4353.3,0.4002]
[1756904499959,1.27041119,4353.4,4353.3,0.1987]
[1756904500760,0.7211,4353.4,4353.3,0.6931]
[1756904501353,0.2058,4354.0,4353.9,0.4002]
[1756904501563,0.54938798,4354.0,4353.9,0.6931]
[1756904502060,0.5027,4354.0,4353.9,0.6983]
[1756904502263,1.05207413,4354.0,4353.9,0.6983]
[1756904502460,1.24857413,4354.0,4353.9,0.6983]
[1756904502757,1.24857413,4354.0,4353.9,0.1987]
[1756904502758,1.36777413,4354.0,4353.9,0.1987]
[1756904504064,1.36777413,4354.0,4353.7,0.2981]
[1756904504267,0.6992,4353.8,4353.7,0.1987]
[1756904505269,1.24893602,4353.8,4353.7,0.1987]
[1756904505766,1.24893602,4353.8,4353.7,0.6935]
[1756904506270,0.54988806,4353.8,4353.7,0.3954]
[1756904506659,0.54988806,4353.8,4353.7,0.6935]
[1756904507157,0.299,4354.1,4353.8,0.2981]
[1756904507358,0.55002004,4354.0,4353.8,0.6935]
[1756904507665,0.6992,4354.8,4354.7,0.6935]
[1756904507961,1.24931127,4354.8,4354.7,0.6935]
[1756904508263,1.34541681,4355.5,4354.7,0.6935]
[1756904508264,0.1187,4355.5,4354.7,4.6935]
[1756904508570,0.299,4355.9,4355.4,0.2981]
[1756904508758,0.6992,4355.9,4355.8,0.1987]
[1756904508961,0.6992,4355.9,4355.8,0.6935]
[1756904509561,0.6992,4355.9,4355.8,0.3954]
[1756904511060,0.6992,4355.9,4355.8,0.6935]
[1756904511767,0.1192,4356.5,4355.8,0.6935]
[1756904511967,0.299,4356.8,4355.9,0.2981]
[1756904512267,0.5027,4356.8,4356.7,0.6935]
[1756904512460,0.6992,4356.8,4356.7,0.6935]
[1756904512661,0.6992,4356.8,4356.7,0.3954]
[1756904512860,0.6992,4356.8,4356.0,0.2981]
[1756904513165,0.4002,4356.8,4355.0,0.1184]
[1756904513367,0.6992,4355.7,4355.6,0.6935]
[1756904515259,0.2037,4355.8,4355.7,0.6935]
[1756904515462,0.6992,4355.8,4355.7,0.3954]
[1756904515666,0.6992,4355.8,4355.5,40.8]
[1756904515968,0.299,4355.7,4355.5,40.8]
[1756904516169,0.6992,4355.6,4355.5,40.8]
[1756904516766,0.6992,4355.6,4355.5,41.0981]
[1756904517070,0.1192,4356.0,4355.8,0.3954]
[1756904517071,0.6992,4355.9,4355.8,0.3954]
[1756904517273,0.6992,4355.9,4355.8,0.6935]
[1756904517871,0.6992,4355.9,4355.8,0.1987]
[1756904518268,0.4002,4355.9,4355.4,40.8]
[1756904518568,0.6992,4355.6,4355.5,0.6935]
[1756904518872,0.6992,4355.6,4355.5,0.1987]
[1756904519865,0.6992,4355.6,4355.5,0.3954]
[1756904520072,0.6992,4355.6,4355.5,0.6935]
[1756904521566,0.6992,4355.6,4355.5,0.1987]
[1756904521769,0.6992,4355.2,4355.1,40.8]
[1756904522373,0.6992,4355.2,4355.1,41.0981]
[1756904522972,0.6992,4355.2,4355.1,0.4968]
[1756904523273,0.6992,4355.2,4355.1,0.6935]
[1756904524168,0.6992,4355.2,4355.1,0.3954]
[1756904524371,0.1192,4355.5,4354.5,0.1987]
[1756904524372,0.6992,4354.6,4354.5,0.1987]
[1756904524568,0.6992,4354.6,4354.5,0.3954]
[1756904524760,0.1192,4355.5,4354.8,0.3954]
[1756904524965,0.5027,4355.4,4355.3,0.6935]
[1756904525564,0.299,4355.9,4355.4,0.2981]
[1756904525870,1.4816321,4356.0,4355.4,0.2981]
[1756904525871,0.6992,4355.5,4355.4,0.6935]
[1756904526373,0.8184,4355.5,4355.0,0.2981]
[1756904526672,0.8184,4355.5,4355.4,0.6935]
[1756904527560,0.8184,4355.5,4354.6,0.2981]
[1756904527873,0.5027,4354.7,4354.6,0.6935]
[1756904528171,0.299,4355.2,4354.7,0.2981]
[1756904528371,0.6992,4355.2,4355.1,0.6935]
[1756904528568,0.6992,4355.9,4355.8,0.3954]
[1756904528766,0.6992,4355.9,4355.8,0.6935]
[1756904528966,1.1274321,4356.3,4355.8,0.6935]
[1756904528967,0.5027,4356.4,4356.3,0.3954]
[1756904529166,0.5027,4356.4,4356.3,1.8209321]
[1756904529359,0.6992,4356.4,4356.3,0.3954]
[1756904529564,0.299,4356.3,4356.1,40.8]
[1756904529767,0.6992,4356.2,4356.1,40.8]
[1756904529969,0.6992,4356.2,4356.1,0.6935]
[1756904531066,1.2466321,4356.5,4356.1,0.3954]
[1756904531067,0.299,4356.5,4356.1,0.3954]
[1756904531266,0.9342,4356.9,4356.8,0.6935]
[1756904531565,0.5128,4357.0,4356.9,0.6935]
[1756904532368,0.2037,4357.0,4356.9,0.6935]
[1756904532667,0.3091,4357.4,4356.9,0.3954]
[1756904532869,0.3091,4357.3,4357.0,0.3187]
[1756904533174,0.8333,4357.5,4357.4,0.2085]
[1756904533374,1.0683,4357.5,4357.4,0.2085]
[1756904534373,1.0683,4357.5,4357.4,0.7379]
[1756904534569,0.7141,4357.5,4357.4,0.7379]
[1756904534773,0.3091,4357.9,4357.5,0.3187]
[1756904534971,0.5089,4357.9,4357.8,0.7379]
[1756904537371,0.7141,4357.9,4357.8,0.7379]
[1756904537876,0.405,4358.0,4357.9,0.4192]
[1756904538176,0.405,4358.0,4357.9,0.7379]
[1756904538177,0.7141,4358.0,4357.9,0.7379]
[1756904538380,0.8366,4358.0,4357.9,0.7379]
[1756904539578,0.7141,4358.0,4357.9,0.7379]
[1756904540684,0.8366,4358.0,4357.9,0.7379]
[1756904541074,0.8366,4358.0,4357.9,0.4192]
[1756904541483,0.8366,4358.0,4357.9,0.7379]
[1756904541781,0.7141,4358.0,4357.9,0.7379]
[1756904543373,0.5441,4358.2,4357.5,0.1252]
[1756904543579,0.9491,4358.2,4358.1,0.7379]
[1756904543977,0.1192,4359.0,4358.1,4.47479586]
[1756904544178,0.7439,4358.8,4358.7,0.4192]
[1756904544378,0.9491,4358.8,4358.7,0.7379]
[1756904545386,0.1998,4358.8,4358.7,0.7379]
[1756904545687,0.235,4359.2,4358.5,0.1252]
[1756904545980,0.9491,4359.2,4359.1,0.4192]
[1756904546182,0.7141,4358.4,4358.3,0.5272]
[1756904546383,0.7141,4358.4,4358.3,0.7379]
[1756904548077,0.7141,4358.4,4358.3,0.4192]
[1756904548282,0.7141,4358.4,4358.3,0.7379]
[1756904548482,0.1998,4358.4,4358.3,0.7379]
[1756904548885,0.3091,4358.7,4358.4,0.3187]
[1756904549085,0.5089,4358.7,4358.6,0.7379]
[1756904549386,0.7141,4358.7,4358.6,0.7379]
[1756904550587,0.3575,4359.0,4358.7,0.3187]
[1756904550588,0.235,4359.0,4358.7,0.3187]
[1756904550781,0.64,4359.0,4358.9,0.7379]
[1756904550980,0.405,4359.0,4358.9,0.7379]
[1756904551183,0.7141,4359.0,4358.9,0.7379]
[1756904551484,0.1998,4359.0,4358.9,0.7379]
[1756904551677,0.405,4359.1,4358.6,0.3187]
[1756904551986,0.5089,4359.1,4359.0,0.8631]
[1756904552289,0.7141,4359.1,4359.0,0.7379]
[1756904554085,0.5089,4359.1,4359.0,0.7379]
[1756904554295,0.5089,4359.1,4359.0,0.8631]
[1756904556086,0.3575,4359.5,4359.0,0.5444]
[1756904556282,0.5089,4359.2,4359.1,0.3187]
[1756904556484,0.5089,4359.2,4359.1,0.7379]
[1756904557488,0.7141,4359.3,4359.2,0.7379]
[1756904557991,0.7141,4359.3,4359.2,0.4192]
[1756904557992,0.1998,4359.3,4359.2,0.4192]
[1756904558286,0.7141,4359.3,4359.2,0.7379]
[1756904558487,0.7141,4359.3,4359.2,0.2085]
[1756904558694,0.1225,4359.5,4358.9,0.2085]
[1756904558695,0.8366,4359.0,4358.9,0.2085]
[1756904558889,0.8366,4359.0,4358.9,0.5272]
[1756904559085,0.8366,4359.0,4358.9,0.2085]
[1756904559794,0.8366,4359.0,4358.5,5.165]
[1756904559983,0.1225,4359.0,4358.5,5.165]
[1756904560184,0.7141,4358.6,4358.5,5.9029]
[1756904560387,0.7141,4358.6,4358.5,5.5842]
[1756904560591,0.7141,4358.6,4358.5,5.9029]
[1756904561688,0.3145,4358.9,4358.5,6.0261]
[1756904561888,0.74378157,4358.8,4358.7,0.4109]
[1756904562088,0.5112,4358.8,4358.7,0.7188]
[1756904562287,1.05848466,4358.8,4358.7,0.7188]
[1756904563093,1.26958466,4358.8,4358.7,0.7188]
[1756904563491,0.7223,4358.6,4358.5,5.165]
[1756904563691,0.7223,4358.6,4358.5,0.2033]
[1756904564090,0.3145,4358.9,4358.6,0.3079]
[1756904564290,0.7223,4358.9,4358.8,0.7188]
[1756904564490,1.26991529,4358.9,4358.8,0.7188]
[1756904564698,0.7223,4358.9,4358.8,0.7188]
[1756904565498,0.1967,4358.9,4358.8,0.7188]
[1756904565793,1.22671681,4359.9,4358.9,0.3079]
[1756904565999,0.4331,4361.0,4358.8,9.32626936]
[1756904566000,1.22671681,4360.9,4359.9,0.3079]
[1756904566193,0.8409,4360.0,4359.9,0.2033]
[1756904566492,0.7223,4359.2,4359.1,0.5112]
[1756904567005,0.7223,4359.2,4359.1,0.2033]
[1756904567201,0.7223,4359.2,4359.1,0.7188]
[1756904567202,0.5112,4359.2,4359.1,0.7188]
[1756904568089,0.1186,4360.0,4359.9,0.2033]
[1756904568288,34.66646521,4360.9,4359.9,0.7188]
[1756904568289,0.54755042,4360.3,4359.9,0.7188]
[1756904568495,0.7223,4360.8,4360.7,0.2033]
[1756904568689,1.26985402,4360.8,4360.7,0.2033]
[1756904569494,0.3145,4360.7,4360.1,40.8]
[1756904569694,0.1967,4360.2,4360.1,41.1079]
[1756904569894,0.5112,4360.2,4360.1,41.1079]
[1756904570291,0.1186,4360.5,4360.4,0.4109]
[1756904570493,1.05847482,4360.5,4360.4,0.7188]
[1756904570696,0.3145,4361.0,4360.5,0.1232]
[1756904570894,0.54731761,4360.9,4360.8,0.4109]
[1756904571202,1.05851761,4360.9,4360.8,0.7188]
[1756904571595,1.26961761,4360.9,4360.8,0.7188]
[1756904571795,0.7223,4360.9,4360.8,0.7188]
[1756904572394,0.7223,4360.9,4360.8,0.2033]
[1756904572591,0.7223,4360.9,4360.4,0.3079]
[1756904572792,0.7223,4360.2,4360.1,40.8]
[1756904573304,0.1186,4360.0,4359.8,0.3079]
[1756904573600,0.1186,4360.0,4359.5,0.842]
[1756904573601,0.5112,4359.6,4359.5,0.842]
[1756904573806,0.8409,4360.5,4360.4,0.2033]
[1756904574006,1.38782702,4360.5,4360.4,0.2033]
[1756904574201,0.8409,4360.5,4360.4,0.7188]
[1756904575100,0.3536,4361.0,4360.4,0.7188]
[1756904575101,0.3145,4360.9,4360.4,0.7188]
[1756904575403,1.05823902,4360.8,4360.7,0.4109]
[1756904575598,1.05823902,4360.8,4360.7,0.7188]
[1756904575599,0.7223,4360.8,4360.7,0.7188]
[1756904576502,1.22671681,4361.9,4360.7,0.7188]
[1756904576697,0.4078,4360.8,4360.2,0.4127]
[1756904576906,0.7223,4360.1,4360.0,0.7188]
[1756904577907,0.1186,4361.0,4360.0,0.7188]
[1756904578109,0.7223,4360.9,4360.8,0.2033]
[1756904578410,0.7223,4360.9,4360.1,0.3079]
[1756904579617,0.7223,4360.9,4360.8,0.2033]
[1756904581409,0.5112,4360.9,4360.8,0.7188]
[1756904581810,0.7223,4360.9,4360.8,0.7188]
[1756904582020,0.7223,4360.9,4360.4,0.3079]
[1756904582215,0.7223,4360.2,4360.1,0.7188]
[1756904582418,0.1186,4361.0,4360.1,0.7188]
[1756904582721,0.3145,4360.9,4360.2,0.3079]
[1756904583113,0.1967,4360.3,4360.2,0.7188]
[1756904584413,0.3145,4360.9,4360.3,0.3079]
[1756904584612,0.5112,4360.4,4360.3,0.7188]
[1756904585418,0.1967,4360.4,4360.3,0.7188]
[1756904585616,0.3145,4360.9,4360.4,0.3079]
[1756904585920,0.7223,4360.9,4360.8,0.7188]
[1756904586123,0.4078,4360.1,4360.0,0.7188]
[1756904586319,0.7223,4360.1,4360.0,0.94812999]
[1756904586516,0.3145,4360.5,4360.1,0.3079]
[1756904586717,0.3145,4361.4,4360.6,0.3079]
[1756904587023,0.5112,4360.7,4360.6,0.7188]
[1756904587321,0.7223,4360.7,4360.6,0.7188]
[1756904587916,0.5112,4360.7,4360.6,0.7188]
[1756904588115,0.3145,4360.9,4360.7,0.3079]
[1756904588416,0.7223,4360.9,4360.8,0.7188]
[1756904588621,0.7223,4360.9,4360.0,4.80914936]
[1756904588622,0.7223,4360.9,4360.4,0.3079]
[1756904588816,0.4078,4360.9,4360.8,0.2033]
[1756904589212,0.4078,4360.9,4360.3,0.3079]
[1756904589521,0.5264,4360.5,4360.4,0.2033]
[1756904589714,0.5264,4360.5,4360.4,0.5112]
[1756904589913,0.8409,4360.5,4360.4,0.2033]
[1756904590825,0.8409,4360.5,4360.4,0.7188]
[1756904591021,0.1967,4360.5,4360.4,0.7188]
[1756904591717,0.6776,4360.5,4360.4,0.7188]
[1756904592620,0.7925,4361.0,4360.9,0.1933]
[1756904592821,0.7925,4361.0,4360.6,0.2894]
[1756904593319,0.7925,4361.0,4360.1,0.2894]
[1756904594422,0.193,4360.2,4360.1,0.6901]
[1756904595520,0.6739,4360.2,4360.1,0.6901]
[1756904596120,0.6739,4360.2,4360.1,0.4007]
[1756904597427,0.3862,4359.6,4359.5,40.8]
[1756904597630,0.6739,4359.6,4359.5,0.1933]
[1756904598027,0.6739,4359.6,4359.5,0.6901]
[1756904600233,0.193,4359.6,4359.5,0.8068]
[1756904600621,0.6739,4360.4,4360.3,0.4007]
[1756904600822,0.096,4360.7,4360.3,0.6901]
[1756904601024,0.83682728,4360.6,4360.4,0.2894]
[1756904601226,0.1186,4361.0,4360.4,0.6901]
[1756904601227,0.193,4360.5,4360.4,0.6901]
[1756904601428,0.4807,4360.5,4360.4,0.6901]
[1756904601626,0.5096,4360.5,4360.3,40.8]
[1756904601928,0.4807,4359.8,4359.7,0.6901]
[1756904602325,0.2877,4360.2,4359.7,41.4901]
[1756904602531,0.193,4359.9,4359.8,0.6901]
[1756904603231,0.2877,4360.1,4359.8,0.6901]
[1756904603435,0.6739,4360.7,4360.6,0.6901]
[1756904603629,1.22306406,4360.7,4360.6,0.6901]
[1756904604433,0.2877,4361.0,4360.6,0.4007]
[1756904604731,0.6739,4361.4,4361.3,0.6901]
[1756904604930,1.22319256,4361.4,4361.3,0.6901]
[1756904605432,0.6739,4361.4,4361.3,0.6901]
[1756904605733,1.22302733,4361.4,4361.3,0.6901]
[1756904606130,0.6739,4361.4,4361.3,0.6901]
[1756904606329,0.193,4361.4,4361.3,0.6901]
[1756904606530,0.1234,4362.0,4361.3,0.4007]
[1756904606742,0.1234,4362.0,4361.8,0.1933]
[1756904606743,1.22289695,4361.9,4361.8,0.1933]
[1756904607235,1.22289695,4361.9,4361.8,0.6901]
[1756904608539,0.6739,4361.9,4361.8,0.6901]
[1756904610034,0.6739,4361.2,4361.1,0.37755946]
[1756904610234,0.6739,4361.2,4361.1,0.18425946]
[1756904610536,0.6739,4361.2,4361.1,0.37755946]
[1756904610926,0.6739,4361.2,4361.1,0.1933]
[1756904611132,0.6739,4361.2,4361.1,0.6901]
[1756904612236,0.6739,4361.9,4361.8,0.1933]
[1756904613437,0.6739,4361.9,4361.8,0.6901]
[1756904616141,0.6739,4361.9,4361.8,0.4007]
[1756904616344,0.6739,4361.9,4361.0,0.1167]
[1756904616531,0.6739,4361.9,4361.1,0.2894]
[1756904620643,0.6739,4361.9,4361.0,0.1167]
[1756904620644,0.6739,4361.9,4361.8,0.6901]
[1756904621751,0.6739,4361.9,4361.8,0.4007]
[1756904622853,0.6739,4361.9,4361.8,0.7022]
[1756904623352,0.5129,4362.3,4362.2,0.7148]
[1756904623552,0.7104,4362.3,4362.2,0.7148]
[1756904623748,0.7104,4362.3,4362.2,41.0124]
[1756904623955,0.7104,4362.3,4362.2,40.8]
[1756904624251,0.7104,4362.3,4362.2,41.1015]
[1756904624857,0.7104,4362.3,4362.2,40.8]
[1756904625250,0.6361,4362.5,4362.4,0.4133]
[1756904625451,0.8333,4362.5,4362.4,0.4133]
[1756904625753,0.1229,4362.5,4362.2,40.8]
[1756904625958,0.7104,4362.3,4362.2,41.1015]
[1756904626459,0.7104,4362.3,4362.2,40.8]
[1756904626851,0.7104,4362.3,4362.2,41.1015]
[1756904628058,0.1972,4362.3,4362.2,41.1015]
[1756904628261,0.5129,4362.6,4362.5,0.7148]
[1756904628765,0.1234,4363.0,4362.5,0.5407]
[1756904628965,0.5129,4362.7,4362.6,0.5024]
[1756904629265,0.5129,4363.1,4363.0,0.4133]
[1756904629464,0.3157,4363.4,4363.1,0.3015]
[1756904629667,0.3157,4363.4,4363.0,0.1274]
[1756904629668,0.7104,4363.4,4363.3,0.7148]
[1756904630161,0.3579,4364.0,4363.3,0.7148]
[1756904630162,0.3157,4363.8,4363.3,0.7148]
[1756904630360,0.3157,4363.9,4363.4,0.3015]
[1756904630563,0.7104,4364.4,4364.3,0.2124]
[1756904630764,1.25965534,4364.4,4364.0,0.3015]
[1756904630960,0.1972,4363.7,4363.6,4.76009396]
[1756904631461,0.7104,4364.4,4364.3,0.2124]
[1756904631661,0.7104,4364.4,4364.3,0.7148]
[1756904632159,0.7104,4364.4,4363.6,45.25767396]
[1756904632160,0.1975,4364.5,4364.4,0.3015]
[1756904632359,0.8333,4364.5,4364.4,0.2124]
[1756904633156,0.8333,4364.5,4364.0,0.3015]
[1756904633564,0.8333,4364.5,4363.9,0.3015]
[1756904634065,0.8333,4364.5,4364.4,0.2124]
[1756904635264,0.8333,4364.5,4364.4,0.7148]
[1756904635863,0.1972,4364.5,4364.4,0.7148]
[1756904636058,0.3157,4364.8,4364.2,4.04529396]
[1756904636059,0.5129,4364.8,4364.7,0.7148]
[1756904636368,0.5129,4364.9,4364.8,0.7148]
[1756904636569,0.3157,4365.3,4364.9,0.3015]
[1756904636759,0.7104,4365.3,4365.2,0.7148]
[1756904637159,0.7104,4365.3,4365.2,0.4133]
[1756904637358,0.7104,4365.3,4365.2,0.7148]
[1756904638460,0.235,4366.2,4365.2,0.7148]
[1756904638964,0.5129,4365.3,4365.2,0.7148]
[1756904639162,0.7104,4365.3,4365.2,0.7148]
[1756904640359,0.7104,4365.3,4365.2,0.2124]
[1756904640570,33.1449,4366.5,4365.2,4.45859396]
[1756904640571,0.4386,4366.0,4365.2,4.45859396]
[1756904640759,0.4386,4366.0,4365.9,0.2124]
[1756904640760,0.8333,4366.0,4365.9,0.2124]
[1756904640962,0.7104,4365.4,4365.3,0.7148]
[1756904641566,0.7104,4365.4,4365.3,0.4133]
[1756904641771,0.7104,4365.4,4365.3,0.7148]
[1756904642567,0.3947,4365.4,4365.0,45.08129396]
[1756904642865,0.1229,4365.5,4365.0,45.14679396]
[1756904642866,0.7104,4365.1,4365.0,45.14679396]
[1756904644269,0.7104,4365.1,4365.0,45.38179396]
[1756904644874,0.7104,4365.1,4365.0,45.14679396]
[1756904645867,0.4386,4366.0,4365.1,0.3015]
[1756904646067,0.3947,4365.2,4365.1,0.7148]
[1756904646265,0.3947,4365.2,4365.0,44.97269396]
[1756904646266,0.3947,4365.2,4365.0,40.8]
[1756904646577,0.1229,4365.5,4363.5,0.1274]
[1756904646578,0.3157,4364.4,4363.7,0.235]
[1756904646773,0.7104,4364.4,4364.3,0.7148]
[1756904647673,0.3157,4364.8,4364.4,0.3015]
[1756904647867,0.3157,4365.4,4364.8,0.3015]
[1756904648081,0.7104,4365.4,4365.3,0.2124]
[1756904648670,0.7104,4365.4,4364.6,0.5375]
[1756904648872,0.5129,4364.4,4364.3,0.7148]
[1756904649176,0.5129,4364.4,4364.3,0.9508]
[1756904649377,0.1972,4364.4,4364.3,0.9508]
[1756904649977,0.5129,4364.4,4364.3,0.7148]
[1756904650176,0.7104,4364.4,4364.3,0.7148]
[1756904651670,0.4159,4365.0,4364.3,4.76009396]
[1756904651866,0.8299,4365.0,4364.9,0.4102]
[1756904652072,1.3775443,4365.0,4364.9,0.4102]
[1756904652271,1.3775443,4365.0,4364.9,0.7155]
[1756904653073,1.3775443,4365.0,4364.5,0.1243]
[1756904653368,0.2058,4364.4,4364.3,0.7155]
[1756904653573,0.707,4364.4,4364.3,1.83816112]
[1756904654373,0.4176,4364.0,4363.4,0.3053]
[1756904654580,0.4176,4364.0,4363.8,1.12266112]
[1756904655274,0.414,4363.9,4363.8,1.33066112]
[1756904655479,0.707,4363.9,4363.5,1.12266112]
[1756904655675,0.707,4363.6,4363.0,0.1274]
[1756904655886,0.707,4363.0,4362.9,0.7155]
[1756904656073,0.707,4363.0,4362.9,1.83816112]
[1756904657468,0.707,4363.0,4362.9,0.7155]
[1756904657669,0.1246,4364.0,4363.0,0.3323]
[1756904657871,0.75438326,4363.9,4363.8,4.7597403]
[1756904658582,1.25558326,4363.9,4363.8,0.7155]
[1756904659081,1.25558326,4363.9,4363.8,0.4102]
[1756904659474,1.25558326,4363.9,4363.8,0.7155]
[1756904659875,0.75438326,4363.9,4363.8,0.7155]
[1756904660072,0.4176,4364.5,4363.9,0.3053]
[1756904660375,0.707,4364.5,4364.4,0.7155]
[1756904660574,1.25631299,4364.5,4364.4,0.7155]
[1756904660777,0.3287,4365.0,4364.9,0.208]
[1756904660978,1.25638838,4365.0,4364.9,0.7155]
[1756904661177,0.75518838,4365.0,4364.9,0.7155]
[1756904661382,1.04818838,4365.0,4364.9,0.7155]
[1756904661581,1.25638838,4365.0,4364.9,0.4102]
[1756904661877,0.8316,4365.0,4364.9,0.208]
[1756904662884,0.8316,4365.0,4364.5,0.3053]
[1756904663586,0.293,4364.9,4364.6,40.8]
[1756904663785,0.707,4364.7,4364.6,40.8]
[1756904664882,0.293,4364.6,4364.5,0.208]
[1756904665080,0.707,4364.6,4364.5,0.208]
[1756904665276,0.707,4364.6,4364.5,0.7155]
[1756904665483,0.293,4365.4,4364.6,0.3053]
[1756904665783,0.707,4365.2,4365.1,0.208]
[1756904666183,0.236,4365.8,4365.1,0.4102]
[1756904666379,0.236,4365.8,4365.2,0.3053]
[1756904666380,0.54948161,4365.7,4365.2,0.3053]
[1756904666574,0.943,4365.8,4365.7,0.208]
[1756904666776,1.49248293,4365.8,4365.7,0.208]
[1756904667281,1.25648293,4365.8,4365.7,0.7155]
[1756904668084,1.25648293,4365.8,4365.7,0.4102]
[1756904668688,1.25648293,4365.8,4365.7,0.208]
[1756904668984,1.25648293,4365.8,4365.7,0.7155]
[1756904668985,1.04828293,4365.8,4365.7,0.7155]
[1756904669186,1.25648293,4365.8,4365.7,0.7155]
[1756904669386,0.707,4365.8,4365.7,0.7155]
[1756904669785,0.707,4365.8,4365.7,0.4102]
[1756904670184,0.707,4365.8,4365.7,0.7155]
[1756904670378,0.4988,4365.8,4365.7,0.7155]
[1756904670578,0.2058,4365.8,4365.7,0.7155]
[1756904670795,0.4988,4365.8,4365.7,0.7155]
[1756904670980,0.3606,4366.5,4365.8,0.3053]
[1756904671187,0.2058,4365.9,4365.8,0.7155]
[1756904671589,0.4988,4365.9,4365.8,0.7155]
[1756904671790,0.707,4365.9,4365.8,0.7155]
[1756904672091,1.25632752,4365.9,4365.8,0.7155]
[1756904672289,1.25632752,4365.9,4365.8,0.4102]
[1756904672487,0.1246,4365.5,4365.4,40.8]
[1756904672693,0.2058,4364.8,4364.7,0.9515]
[1756904672892,0.1246,4365.5,4364.7,0.52178984]
[1756904673088,0.8316,4366.0,4365.9,0.7155]
[1756904673296,1.38090521,4366.0,4365.9,0.7155]
[1756904673993,1.38090521,4366.0,4365.9,0.4102]
[1756904674193,1.38090521,4366.0,4365.5,41.1053]
[1756904674194,1.08790521,4366.0,4365.5,41.1053]
[1756904674394,0.2058,4365.6,4365.5,41.1053]
[1756904674696,0.2058,4365.6,4365.5,41.2296]
[1756904675396,0.4988,4365.6,4365.5,41.1053]
[1756904676890,0.2082,4365.1,4365.0,0.236]
[1756904677090,0.2082,4365.1,4365.0,0.7155]
[1756904677091,0.707,4365.1,4365.0,0.7155]
[1756904677292,0.707,4365.1,4365.0,41.5155]
[1756904678388,0.707,4365.1,4365.0,41.2102]
[1756904678892,0.707,4365.1,4365.0,0.4102]
[1756904679194,0.707,4365.1,4365.0,0.7155]
[1756904679584,0.707,4365.1,4365.0,0.208]
[1756904679789,0.1246,4365.0,4364.7,0.3053]
[1756904680092,0.707,4364.8,4364.7,0.7155]
[1756904680290,0.707,4364.8,4364.7,0.208]
[1756904681394,0.707,4364.8,4364.7,0.7155]
[1756904681896,0.707,4364.8,4364.7,0.7114]
[1756904682094,0.387,4364.1,4364.0,0.7152]
[1756904682296,0.6859,4364.1,4364.0,0.7152]
[1756904682689,0.1161,4364.0,4363.6,0.3091]
[1756904682892,0.387,4363.7,4363.6,0.7152]
[1756904683398,0.6859,4363.7,4363.6,0.7152]
[1756904684194,0.6859,4363.7,4363.6,0.2001]
[1756904685798,0.6859,4363.7,4363.6,0.7152]
[1756904685996,0.6859,4365.4,4365.3,0.2001]
[1756904686193,1.23528053,4365.4,4365.3,0.2001]
[1756904686388,0.6859,4365.4,4365.3,0.2001]
[1756904686592,0.6859,4365.4,4365.3,0.7152]
[1756904687495,0.6859,4365.4,4365.3,0.4061]
[1756904688000,33.2979,4365.9,4365.4,0.3091]
[1756904688204,33.6849,4365.9,4365.8,0.2001]
[1756904688400,34.23501362,4365.9,4365.8,0.2001]
[1756904688999,1.04271362,4365.9,4365.8,0.7152]
[1756904689601,1.23601362,4365.9,4365.8,0.7152]
[1756904689998,1.23601362,4365.9,4365.8,0.4061]
[1756904690699,0.2989,4366.4,4365.9,0.3091]
[1756904690901,0.93745134,4366.3,4366.2,0.2001]
[1756904691504,1.23635134,4366.3,4366.2,0.2001]
[1756904691903,0.2989,4366.2,4365.0,41.2262]
[1756904692203,0.1161,4366.5,4365.0,41.45525999]
[1756904692204,0.4926,4365.1,4365.0,41.45525999]
[1756904692404,0.6859,4365.5,4365.4,0.2001]
[1756904692702,0.6859,4365.5,4365.4,0.7152]
[1756904693108,0.1937,4365.5,4365.4,0.7152]
[1756904694007,0.1161,4366.0,4365.4,0.4061]
[1756904694211,0.55023956,4365.9,4365.8,0.7152]
[1756904694503,0.2989,4366.4,4365.9,0.3091]
[1756904694704,1.23620323,4366.3,4366.2,0.2001]
[1756904696201,0.93730323,4366.3,4365.5,0.4262]
[1756904696400,0.1937,4365.6,4365.5,0.8323]
[1756904696607,0.4926,4365.6,4365.5,0.7152]
[1756904696905,0.6859,4365.6,4365.5,0.7152]